bitfinex/quotes_ETHUSD_20220219
["timestamp","ask_amount","ask_price","bid_price","bid_amount"]
[1645306590719,0.0001295,2745.1,2744.8,1.65128874]
[1645306590720,10.187,2745.0,2744.8,1.65128874]
[1645306591022,10.187,2745.0,2744.7,0.0029784]
[1645306591023,11.65090079,2744.8,2744.7,0.0029784]
[1645306591219,0.55219079,2743.8,2743.5,0.69251352]
[1645306591426,0.55219079,2743.8,2743.4,1.85511352]
[1645306591621,0.55219079,2743.8,2743.4,0.69251352]
[1645306591875,0.55219079,2743.7,2743.4,0.69251352]
[1645306592072,1.46416079,2743.7,2743.4,0.69251352]
[1645306592471,2.7362181,2743.8,2743.7,0.18788775]
[1645306592872,4.0362181,2743.8,2743.7,0.18788775]
[1645306593271,4.0362181,2743.8,2743.1,0.69251352]
[1645306593471,1.82438,2743.5,2743.1,0.69251352]
[1645306593671,2.73656,2743.5,2743.1,0.69251352]
[1645306594078,0.56133658,2743.4,2743.1,0.69251352]
[1645306594274,0.56133658,2743.4,2743.2,0.00297903]
[1645306594677,1.47348658,2743.4,2743.2,0.00297903]
[1645306595273,1.47348658,2743.4,2743.0,0.69251352]
[1645306595475,1.47348658,2743.4,2742.9,0.72732286]
[1645306595728,0.91215,2743.4,2743.2,0.00297903]
[1645306596426,0.91215,2743.4,2742.8,0.69251352]
[1645306596631,0.91215,2743.4,2743.2,0.0029787]
[1645306597628,0.91218,2743.5,2743.0,0.58977128]
[1645306597828,0.91218,2743.5,2743.2,0.0029787]
[1645306598029,1.2101,2743.8,2743.2,0.0029787]
[1645306598231,2.34583,2744.0,2743.2,0.0029787]
[1645306598232,1.82383,2744.0,2743.2,0.0029787]
[1645306598631,2.52142833,2744.0,2743.2,0.0029787]
[1645306598833,0.91187,2743.9,2743.0,1.2822848]
[1645306599027,0.91187,2743.9,2743.5,0.00297856]
[1645306599232,1.82373,2743.9,2743.5,0.00297856]
[1645306600066,1.82373,2743.9,2743.1,0.69251352]
[1645306600363,1.82373,2743.9,2743.6,0.00297854]
[1645306601166,1.82373,2743.9,2743.0,1.2822848]
[1645306601465,1.77373,2743.9,2743.6,0.00297852]
[1645306602068,0.00297786,2744.2,2743.6,0.00297852]
[1645306602466,7.2128,2744.6,2743.5,0.55945202]
[1645306602668,0.00297795,2744.2,2743.8,0.00297845]
[1645306603317,0.00297795,2744.2,2744.0,0.66370285]
[1645306603517,7.2128,2744.6,2744.0,0.66370285]
[1645306603518,3.948,2744.6,2744.0,0.66370285]
[1645306603919,0.002978,2744.2,2744.0,0.66370285]
[1645306604921,1.1301,2744.6,2744.0,0.66370285]
[1645306605124,0.00297804,2744.2,2744.0,0.66370285]
[1645306605922,1.1301,2744.6,2744.0,0.66370285]
[1645306606224,0.00297804,2744.2,2744.0,0.66370285]
[1645306606423,0.00297804,2744.2,2743.8,0.00297856]
[1645306607271,1.75991443,2744.6,2743.5,0.87471352]
[1645306607471,0.00297799,2744.2,2743.8,0.66590676]
[1645306608470,2.67152443,2744.6,2743.8,0.66292827]
[1645306608671,0.00297799,2744.2,2743.8,0.66590676]
[1645306609574,2.67152443,2744.6,2743.8,0.66292827]
[1645306609975,0.00297799,2744.2,2743.8,0.66590676]
[1645306610816,2.67152443,2744.6,2743.9,1.5484254]
[1645306611021,0.00297799,2744.2,2743.9,1.5484254]
[1645306612018,2.04171,2744.6,2743.9,1.5484254]
[1645306612227,0.00297802,2744.2,2743.9,1.5484254]
[1645306612420,2.04171,2744.6,2744.2,0.00595604]
[1645306612818,1.1301,2744.6,2744.2,0.00595604]
[1645306613621,1.1301,2744.6,2744.3,1.54842113]
[1645306613820,0.91159,2744.7,2744.3,1.54842113]
[1645306614023,1.51620089,2744.7,2744.3,1.54842113]
[1645306614770,0.00168197,2744.6,2744.2,0.00595604]
[1645306614966,0.00168197,2744.6,2744.3,1.54843747]
[1645306615567,0.91159,2744.7,2744.3,1.54843747]
[1645306615766,0.90060103,2744.7,2744.3,1.54843747]
[1645306615968,0.90060103,2744.7,2744.3,2.09024824]
[1645306616169,0.90060103,2744.7,2744.3,0.54181077]
[1645306616771,0.90060103,2744.7,2744.4,1.54840084]
[1645306617771,0.90060103,2744.7,2744.3,0.54181077]
[1645306617973,0.90060103,2744.7,2744.4,1.54839854]
[1645306618223,0.90232311,2744.7,2744.4,1.54839854]
[1645306618423,0.90232311,2744.7,2744.3,0.54181077]
[1645306619224,0.90060103,2744.7,2744.3,0.54181077]
[1645306619524,0.90232308,2744.7,2744.3,0.54181077]
[1645306620326,0.90060103,2744.7,2744.3,0.54181077]
[1645306620528,6.05611,2744.9,2744.4,1.54841262]
[1645306620529,0.91154,2744.9,2744.4,1.54841262]
[1645306620727,0.00302234,2744.7,2744.4,1.54841262]
[1645306621629,3.6594295,2745.1,2744.4,1.54841262]
[1645306621873,0.00301839,2744.7,2744.4,1.54841262]
[1645306622672,0.91459839,2744.7,2744.4,1.54841262]
[1645306622971,0.91158,2744.7,2744.4,1.54841262]
[1645306623177,0.91459839,2744.7,2744.4,1.54841262]
[1645306623873,1.82617839,2744.7,2744.4,1.54841262]
[1645306624072,1.82316,2744.7,2744.4,1.54841262]
[1645306624272,1.82617839,2744.7,2744.4,1.54841262]
[1645306625172,1.82316,2744.7,2744.4,1.54841262]
[1645306625621,1.82613515,2744.7,2744.4,1.54841262]
[1645306626421,1.82316,2744.7,2744.4,1.54841262]
[1645306626621,1.82613515,2744.7,2744.4,1.54841262]
[1645306627024,0.00297515,2744.7,2744.4,1.54841262]
[1645306627628,0.0001295,2745.1,2744.4,1.54841262]
[1645306627822,0.00297515,2744.7,2744.4,1.54841262]
[1645306628725,0.0001295,2745.1,2744.4,1.54841262]
[1645306629223,0.00281718,2744.7,2744.4,1.54841262]
[1645306630068,0.68969582,2745.0,2744.4,1.54841262]
[1645306630373,1.82620718,2744.7,2744.3,1.54841262]
[1645306630564,1.82620718,2744.7,2744.2,0.00595604]
[1645306630565,1.82620718,2744.7,2744.5,1.54841262]
[1645306630766,1.82620718,2744.7,2744.2,0.00595604]
[1645306630966,0.9117,2744.6,2744.3,1.54839321]
[1645306632367,3.6470582,2744.6,2744.3,1.54839321]
[1645306633123,0.9117729,2744.5,2744.3,1.54839321]
[1645306634521,1.49078453,2744.5,2744.3,1.54839321]
[1645306634723,1.49078453,2744.5,2744.2,0.00595604]
[1645306634921,0.91184,2744.3,2744.2,0.00595604]
[1645306635527,0.91184,2744.3,2744.2,1.55449668]
[1645306637967,0.91184,2744.3,2744.2,1.55453335]
[1645306639567,0.91184,2744.3,2744.2,1.55341636]
[1645306646982,2.97101,2744.6,2744.2,1.55341636]
[1645306647184,1.82341,2744.6,2744.3,1.54857731]
[1645306648517,1.82341,2744.6,2744.3,2.21074355]
[1645306648717,1.82341,2744.6,2744.4,1.54857731]
[1645306649919,1.82341,2744.6,2744.5,1.54857731]
[1645306650118,1.82341,2744.6,2744.3,1.54857731]
[1645306651971,1.82362,2744.4,2744.3,1.54857731]
[1645306652569,2.73545,2744.4,2744.2,0.00483905]
[1645306653171,3.93555,2744.4,2744.2,0.00483905]
[1645306653369,0.62097012,2744.3,2744.2,0.00483905]
[1645306653574,1.53277012,2744.3,2744.2,1.55348458]
[1645306654977,2.05477012,2744.3,2744.2,1.55348458]
[1645306657421,2.05477012,2744.3,2744.2,0.00483905]
[1645306659575,1.4338,2744.3,2744.2,0.00483905]
[1645306659774,0.9118,2744.3,2744.2,1.55345848]
[1645306660775,2.45495111,2744.3,2744.2,1.55345848]
[1645306661775,2.45495111,2744.3,2744.2,1.55218194]
[1645306662175,2.45495111,2744.3,2744.2,0.00356251]
[1645306662777,2.45495111,2744.3,2744.2,1.55218194]
[1645306662977,2.45495111,2744.3,2744.2,0.00356251]
[1645306664022,2.45495111,2744.3,2744.2,1.55218194]
[1645306664227,2.45495111,2744.3,2744.2,0.00356251]
[1645306664824,2.45495111,2744.3,2744.2,1.55218194]
[1645306665225,2.45495111,2744.3,2744.2,0.00356251]
[1645306673125,9.96215833,2744.3,2744.2,0.00356251]
[1645306673625,47.99643749,2744.2,2743.9,0.00278844]
[1645306673825,0.522,2744.1,2743.9,1.55494076]
[1645306674024,0.912,2744.0,2743.9,0.00278844]
[1645306674477,0.912,2744.0,2743.6,0.00331086]
[1645306674681,0.912,2744.0,2743.8,0.00278834]
[1645306674880,0.60785288,2743.8,2743.7,1.41609424]
[1645306675075,0.91196,2743.7,2743.3,1.1669]
[1645306675276,0.91196,2743.7,2743.2,0.71409994]
[1645306677178,0.91196,2743.7,2743.3,0.00111635]
[1645306678222,0.91196,2743.7,2743.2,0.71409994]
[1645306678427,5.10413181,2743.6,2743.3,0.00111635]
[1645306678624,10.20826362,2743.6,2743.3,0.00111635]
[1645306678824,6.10663181,2743.5,2743.3,0.00111635]
[1645306679026,10.56115654,2743.5,2743.3,0.00111635]
[1645306679227,10.56115654,2743.5,2743.2,1.40661346]
[1645306679228,4.87629195,2743.4,2743.2,1.40661346]
[1645306679426,3.84714344,2744.3,2743.2,1.40661346]
[1645306679827,3.84714344,2744.3,2743.9,0.58564977]
[1645306680031,0.95224344,2744.3,2743.9,0.58564977]
[1645306680226,1.86398344,2744.3,2743.9,0.58564977]
[1645306680828,0.00305718,2744.2,2743.9,0.58564977]
[1645306681630,2.77569344,2744.3,2743.9,0.58564977]
[1645306682075,0.0030572,2744.2,2743.9,0.58564977]
[1645306682976,2.77569344,2744.3,2743.9,0.58564977]
[1645306683275,0.00282798,2744.2,2743.9,0.58564977]
[1645306684074,0.95224344,2744.3,2743.9,0.58564977]
[1645306684274,0.00276091,2744.2,2743.9,0.58564977]
[1645306684875,0.00276091,2744.2,2743.5,0.69251352]
[1645306685276,2.77568344,2744.3,2743.5,0.69251352]
[1645306685476,2.77568344,2744.3,2743.3,3.82947346]
[1645306685477,0.00276099,2744.0,2743.4,0.69251352]
[1645306686328,0.00276099,2744.0,2743.6,0.6195831]
[1645306686525,2.77568344,2744.3,2743.6,0.6195831]
[1645306686725,0.00278616,2743.8,2743.6,0.6195831]
[1645306687629,2.77568344,2744.3,2743.6,0.6195831]
[1645306688027,0.002806,2743.8,2743.6,0.6195831]
[1645306688826,3.68746384,2744.3,2743.6,0.6195831]
[1645306689229,0.002806,2743.8,2743.6,0.6195831]
[1645306690079,3.68746384,2744.3,2743.6,0.6195831]
[1645306690279,0.00280366,2743.8,2743.6,0.6195831]
[1645306691279,0.9118,2744.0,2743.6,0.6195831]
[1645306691581,0.00280092,2743.8,2743.6,0.6195831]
[1645306692578,0.9118,2744.0,2743.6,0.6195831]
[1645306692782,0.00280092,2743.8,2743.6,0.6195831]
[1645306693623,0.9118,2744.0,2743.6,0.6195831]
[1645306693924,0.00280062,2743.8,2743.6,0.6195831]
[1645306694528,0.00280062,2743.8,2743.7,3.5]
[1645306694727,0.00280062,2743.8,2743.7,5.0485865]
[1645306694927,1.86395344,2744.3,2743.7,1.5485865]
[1645306695130,0.00280092,2743.9,2743.7,5.0485865]
[1645306695331,0.00280092,2743.9,2743.8,1.5485865]
[1645306696128,0.91184,2744.0,2743.8,1.4985865]
[1645306696328,0.91464088,2744.0,2743.8,1.4985865]
[1645306696528,0.91464088,2744.0,2743.7,3.5]
[1645306697476,0.91184,2744.0,2743.7,3.5]
[1645306697680,0.91464094,2744.0,2743.6,1.31209662]
[1645306697882,0.91464094,2744.0,2743.7,3.5]
[1645306698078,0.91464094,2744.0,2743.6,0.6195831]
[1645306698480,0.91184,2744.0,2743.6,0.6195831]
[1645306698678,0.00280094,2743.9,2743.6,0.6195831]
[1645306699080,0.91188,2743.8,2743.6,0.6195831]
[1645306699879,0.91468098,2743.8,2743.6,0.6195831]
[1645306700637,0.00280098,2743.8,2743.6,0.6195831]
[1645306700833,0.95236725,2743.9,2743.6,0.6195831]
[1645306701231,0.00280097,2743.8,2743.6,0.6195831]
[1645306702133,0.95236725,2743.9,2743.6,0.6195831]
[1645306702432,0.00280097,2743.8,2743.6,0.6195831]
[1645306703436,0.95236725,2743.9,2743.6,0.6195831]
[1645306703636,0.00280097,2743.8,2743.6,0.6195831]
[1645306704484,2.14761,2744.3,2743.6,0.6195831]
[1645306704682,1.2359,2744.3,2743.8,0.0084029]
[1645306705082,1.2359,2744.3,2744.1,0.65433391]
[1645306705282,0.91168,2744.4,2744.1,0.65433391]
[1645306705786,10.01033574,2744.7,2744.1,0.65433391]
[1645306705787,0.54047553,2744.6,2744.1,0.65433391]
[1645306705983,10.01025574,2744.7,2744.1,0.65433391]
[1645306705984,0.00280075,2744.4,2744.1,0.65433391]
[1645306706982,0.91163,2744.5,2744.1,0.65433391]
[1645306707181,0.00280075,2744.4,2744.1,0.65433391]
[1645306708227,0.91163,2744.5,2744.1,0.65433391]
[1645306708435,0.00280074,2744.4,2744.1,0.65433391]
[1645306709228,1.45330805,2744.5,2744.1,0.65433391]
[1645306709628,0.00280072,2744.4,2744.1,0.65433391]
[1645306710430,1.45330805,2744.5,2744.1,0.65433391]
[1645306710831,0.00280072,2744.4,2744.1,0.65433391]
[1645306711630,1.45330805,2744.5,2744.1,0.65433391]
[1645306711873,0.00280072,2744.4,2744.1,0.65433391]
[1645306712874,0.91167,2744.4,2743.8,0.0084029]
[1645306713274,0.91447072,2744.4,2743.8,0.0084029]
[1645306714179,0.91167,2744.4,2743.8,0.0084029]
[1645306714379,0.00280078,2744.2,2743.8,0.68943817]
[1645306714578,0.00186126,2744.2,2743.8,0.68943817]
[1645306715478,0.91173,2744.3,2743.8,0.0084029]
[1645306716130,0.91173,2744.3,2743.9,1.54863621]
[1645306718328,0.9522327,2744.2,2743.9,1.54863621]
[1645306719129,0.95524151,2744.2,2743.9,1.54863621]
[1645306720179,0.9522327,2744.2,2743.9,1.54863621]
[1645306720381,0.95507057,2744.2,2743.9,1.54863621]
[1645306721385,0.9522327,2744.2,2743.9,1.54863621]
[1645306721686,0.95507057,2744.2,2743.9,1.54863621]
[1645306721880,0.95507057,2744.2,2744.0,3.5]
[1645306722079,0.95507057,2744.2,2744.1,1.54863621]
[1645306722278,0.95507057,2744.2,2743.8,3.5084029]
[1645306722279,0.95507057,2744.2,2743.9,1.54863621]
[1645306722482,0.95507057,2744.2,2743.8,3.5084029]
[1645306722483,0.9522327,2744.2,2744.0,1.54863621]
[1645306722687,0.9522327,2744.2,2744.1,1.54863621]
[1645306722880,0.9522327,2744.2,2743.9,1.54863621]
[1645306723939,0.95501381,2744.2,2743.9,1.54863621]
[1645306724935,0.9522327,2744.2,2743.9,1.54863621]
[1645306725235,0.95503066,2744.2,2743.9,1.54863621]
[1645306726034,0.9522327,2744.2,2743.9,1.54863621]
[1645306726435,0.95503066,2744.2,2743.9,1.54863621]
[1645306727276,0.9522327,2744.2,2743.9,1.54863621]
[1645306727681,0.95503348,2744.2,2743.9,1.54863621]
[1645306728477,0.9522327,2744.2,2743.9,1.54863621]
[1645306728676,0.95503382,2744.2,2743.9,1.54863621]
[1645306729679,0.9522327,2744.2,2743.9,1.54863621]
[1645306729879,0.95503382,2744.2,2743.9,1.54863621]
[1645306730938,0.9522327,2744.2,2743.9,1.54863621]
[1645306731135,0.9550336,2744.2,2743.9,1.54863621]
[1645306732138,0.9522327,2744.2,2743.9,1.54863621]
[1645306732336,0.95503347,2744.2,2743.9,1.54863621]
[1645306733338,0.9522327,2744.2,2743.9,1.54863621]
[1645306733537,0.95503347,2744.2,2743.9,1.54863621]
[1645306734577,0.9522327,2744.2,2743.9,1.54863621]
[1645306734782,0.9550335,2744.2,2743.9,1.54863621]
[1645306735782,0.9522327,2744.2,2743.9,1.54863621]
[1645306735981,0.95503352,2744.2,2743.9,1.54863621]
[1645306736882,0.9522327,2744.2,2743.9,1.54863621]
[1645306737081,0.95503352,2744.2,2743.9,1.54863621]
[1645306738232,0.9522327,2744.2,2743.9,1.54863621]
[1645306738532,0.95503351,2744.2,2743.9,1.54863621]
[1645306739433,0.9522327,2744.2,2743.9,1.54765569]
[1645306739632,0.95503351,2744.2,2743.9,1.54765569]
[1645306740635,0.9522327,2744.2,2743.9,1.54765569]
[1645306740837,0.95503351,2744.2,2743.9,1.54765569]
[1645306741635,0.9522327,2744.2,2743.9,1.54765569]
[1645306742094,0.95503351,2744.2,2743.9,1.54765569]
[1645306742897,0.9522327,2744.2,2743.9,1.54765569]
[1645306743101,0.95503351,2744.2,2743.9,1.54765569]
[1645306744096,0.9522327,2744.2,2743.9,1.54765569]
[1645306744297,0.95503351,2744.2,2743.9,1.54765569]
[1645306745299,0.9522327,2744.2,2743.9,1.54765569]
[1645306745498,0.95503351,2744.2,2743.9,1.54765569]
[1645306746534,0.9522327,2744.2,2743.9,1.54765569]
[1645306746738,0.95393313,2744.2,2743.9,1.54765569]
[1645306747743,0.9522327,2744.2,2743.9,1.54765569]
[1645306747935,0.95393313,2744.2,2743.9,1.54765569]
[1645306748837,0.9522327,2744.2,2743.9,1.54765569]
[1645306749036,0.95522519,2744.2,2743.9,1.54765569]
[1645306749889,0.00299249,2744.2,2744.0,3.5]
[1645306750087,0.9116,2744.6,2744.2,1.64872049]
[1645306750291,3.2551,2744.7,2744.3,3.5]
[1645306750485,1.1614,2744.8,2744.3,3.5]
[1645306750785,1.1614,2744.8,2744.2,1.64872049]
[1645306752486,1.1614,2744.8,2744.3,3.5]
[1645306752684,1.1614,2744.8,2744.2,1.64872049]
[1645306753132,1.1614,2744.8,2744.3,3.5]
[1645306753937,0.00320023,2744.7,2744.3,3.5]
[1645306755040,1.1614,2744.8,2744.3,3.5]
[1645306755237,0.00320025,2744.6,2744.2,1.64872049]
[1645306755448,0.00320025,2744.6,2744.3,3.5]
[1645306755837,0.00320025,2744.6,2744.2,1.64872049]
[1645306756238,1.1614,2744.8,2744.2,1.64872049]
[1645306756440,0.0032003,2744.5,2744.2,1.64872049]
[1645306757296,0.91158,2744.7,2744.2,1.64872049]
[1645306757694,0.00320032,2744.5,2744.2,1.64872049]
[1645306757894,0.00320032,2744.5,2744.3,3.5]
[1645306758493,0.91158,2744.7,2744.3,3.5]
[1645306758898,0.0032003,2744.5,2744.3,3.5]
[1645306759299,0.0032003,2744.5,2744.4,1.54836751]
[1645306759902,1.43347,2745.1,2744.6,0.54784295]
[1645306760099,1.43347,2745.1,2744.7,1.54836751]
[1645306761136,0.00320006,2745.0,2744.7,1.54836751]
[1645306761536,0.91469006,2745.0,2744.7,1.54836751]
[1645306762136,0.91149,2745.0,2744.7,1.54836751]
[1645306762337,0.91469009,2745.0,2744.7,1.54836751]
[1645306762738,0.91469009,2745.0,2744.3,3.5]
[1645306762935,0.91469009,2745.0,2744.4,1.54836645]
[1645306763346,0.91149,2745.0,2744.4,1.54836645]
[1645306763538,0.00320016,2744.8,2744.4,1.54836645]
[1645306763738,0.91473016,2744.8,2744.4,2.19156375]
[1645306763941,0.91473016,2744.8,2744.5,1.54836645]
[1645306764588,0.91153,2744.8,2744.5,1.54836645]
[1645306764887,0.91473018,2744.8,2744.5,5.04836645]
[1645306765092,0.91473018,2744.8,2744.6,1.54836645]
[1645306765287,0.91473018,2744.8,2744.7,1.54836645]
[1645306765487,0.91473018,2744.8,2744.5,1.54836645]
[1645306765689,0.91153,2744.8,2744.5,1.54836645]
[1645306766490,0.91153,2744.8,2744.5,5.04836645]
[1645306766691,0.00314013,2744.9,2744.6,1.54836645]
[1645306766891,7.76391937,2745.2,2744.7,3.5]
[1645306766892,4.11742147,2745.2,2744.7,3.5]
[1645306767089,4.11742147,2745.2,2744.8,1.54836645]
[1645306767290,4.11742147,2745.2,2744.9,1.54836645]
[1645306767491,4.11742147,2745.2,2744.5,3.5]
[1645306767690,4.11742147,2745.2,2744.6,1.5482469]
[1645306768133,3.1654,2745.2,2744.6,1.5482469]
[1645306768440,0.00314006,2745.0,2744.6,1.5482469]
[1645306768634,0.00314006,2745.0,2744.7,3.5]
[1645306768934,0.00314006,2745.0,2744.8,1.5482469]
[1645306769134,0.00314006,2745.0,2744.5,3.5]
[1645306769337,2.66556735,2745.3,2744.6,1.54828891]
[1645306769737,0.00298756,2745.0,2744.6,1.54828891]
[1645306770538,0.91142,2745.2,2744.6,1.54828891]
[1645306770737,0.0029876,2744.9,2744.6,1.54828891]
[1645306771741,0.91142,2745.2,2744.6,1.54828891]
[1645306771984,0.91448762,2744.9,2744.7,1.54828891]
[1645306772283,0.91448762,2744.9,2744.3,3.8142]
[1645306772484,0.91448762,2744.9,2744.4,1.54837489]
[1645306772884,0.91448762,2744.9,2744.5,3.5]
[1645306773082,0.91448762,2744.9,2744.6,1.54837489]
[1645306773083,0.9115,2744.9,2744.6,1.54837489]
[1645306773284,0.00150519,2744.6,2744.3,3.8142]
[1645306773486,0.00150519,2744.6,2744.4,1.54833586]
[1645306774283,0.00150519,2744.6,2744.3,3.8142]
[1645306774483,0.0045032,2744.6,2744.3,3.8142]
[1645306775286,0.00150519,2744.6,2744.3,3.8142]
[1645306775732,0.00450322,2744.6,2744.3,3.8142]
[1645306776537,0.00150519,2744.6,2744.3,3.8142]
[1645306776938,0.00450253,2744.6,2744.3,3.8142]
[1645306777837,0.00150519,2744.6,2744.3,3.8142]
[1645306778036,0.00450253,2744.6,2744.3,3.8142]
[1645306779037,0.00150519,2744.6,2744.3,3.8142]
[1645306779239,0.00450253,2744.6,2744.3,3.8142]
[1645306780087,0.00150519,2744.6,2744.3,3.8142]
[1645306780486,0.00450258,2744.6,2744.3,3.8142]
[1645306781488,0.00150519,2744.6,2744.3,3.5]
[1645306781688,0.00450258,2744.6,2744.3,3.5]
[1645306782689,0.00150519,2744.6,2744.3,3.5]
[1645306782888,0.00450258,2744.6,2744.3,3.5]
[1645306783737,0.00150519,2744.6,2744.3,3.5]
[1645306783939,0.00450258,2744.6,2744.3,3.5]
[1645306784936,0.00150519,2744.6,2744.3,3.5]
[1645306785337,0.00450258,2744.6,2744.3,3.5]
[1645306785538,0.00450258,2744.6,2744.2,2.29674277]
[1645306785539,0.00450258,2744.6,2744.2,5.79674277]
[1645306786137,0.00150519,2744.6,2744.2,5.79674277]
[1645306786340,0.00299741,2744.5,2744.2,5.79674277]
[1645306787387,0.00150519,2744.6,2744.2,5.79674277]
[1645306787584,0.00299743,2744.5,2744.2,5.79674277]
[1645306788584,0.00150519,2744.6,2744.2,5.79674277]
[1645306788785,0.00299743,2744.5,2744.2,5.79674277]
[1645306789687,0.00150519,2744.6,2744.2,5.79674277]
[1645306790086,0.00299743,2744.5,2744.2,5.79674277]
[1645306790933,0.00150519,2744.6,2744.2,5.79674277]
[1645306791334,0.00299743,2744.5,2744.2,5.79674277]
[1645306792132,0.00150519,2744.6,2744.2,5.79674277]
[1645306792334,0.00299743,2744.5,2744.2,2.29674277]
[1645306792532,0.00299743,2744.5,2744.2,5.79674277]
[1645306793433,0.00150519,2744.6,2744.2,5.79674277]
[1645306793633,0.00299743,2744.5,2744.2,5.79674277]
[1645306793833,0.00299743,2744.5,2744.2,6.48925629]
[1645306794232,0.00299743,2744.5,2744.3,1.54831746]
[1645306794685,0.00150519,2744.6,2744.5,0.00899229]
[1645306795087,0.00150519,2744.6,2744.5,5.05730975]
[1645306797188,0.00150519,2744.6,2744.5,5.0558358]
[1645306797787,0.00150519,2744.6,2744.5,5.0058358]
[1645306803197,0.00150519,2744.6,2744.5,5.69834932]
[1645306803800,0.00150519,2744.6,2744.5,5.0058358]
[1645306804199,0.00150519,2744.6,2744.5,5.93226124]
[1645306808845,0.00150519,2744.6,2744.5,16.99226124]
[1645306809044,0.00150519,2744.6,2744.5,19.31528842]
[1645306809247,0.00150519,2744.6,2744.5,16.99226124]
[1645306815138,0.00150519,2744.6,2744.5,19.31528842]
[1645306815344,0.00299733,2744.7,2744.6,15.56]
[1645306815537,0.00299733,2744.7,2744.6,16.06]
[1645306815737,0.00299733,2744.7,2744.6,11.06]
[1645306815939,0.00299733,2744.7,2744.6,14.56]
[1645306816138,0.91123,2745.7,2744.6,14.56]
[1645306816337,0.91123,2745.7,2745.2,0.57425508]
[1645306817697,0.00299698,2745.6,2745.2,0.57425508]
[1645306817998,0.00299698,2745.6,2745.3,1.54791887]
[1645306818595,1.1565,2745.8,2745.3,1.54791887]
[1645306818792,0.00299698,2745.6,2745.3,1.54791887]
[1645306819697,1.72702505,2745.8,2745.3,1.54791887]
[1645306820096,0.00299696,2745.6,2745.3,1.54791887]
[1645306821242,1.72702505,2745.8,2745.3,1.54791887]
[1645306823048,1.72702505,2745.8,2744.8,0.69315538]
[1645306823049,1.82264,2745.7,2745.4,1.54792983]
[1645306823348,3.54964505,2745.8,2744.8,3.5]
[1645306823545,3.54964505,2745.8,2744.9,1.54799029]
[1645306823744,1.8258397,2745.7,2744.9,1.54799029]
[1645306824589,0.91129,2745.5,2744.9,1.54799029]
[1645306824888,0.91133,2745.4,2744.9,1.54799029]
[1645306825288,0.91129,2745.5,2744.9,1.54799029]
[1645306825593,0.00319952,2745.7,2745.0,3.5]
[1645306825787,2.63833505,2745.8,2745.0,3.5]
[1645306825788,1.72702505,2745.8,2745.1,1.54799029]
[1645306825987,0.00319945,2745.7,2745.1,1.54799029]
[1645306826187,0.00319945,2745.7,2745.2,1.54799029]
[1645306826388,0.00319945,2745.7,2745.3,1.54799029]
[1645306826587,0.00319945,2745.7,2745.4,1.54799029]
[1645306826793,0.00319945,2745.7,2745.5,1.54799029]
[1645306826989,0.61752807,2745.8,2744.8,4.19315538]
[1645306827189,0.0031997,2745.7,2744.9,1.54787453]
[1645306827389,0.0031997,2745.7,2745.0,3.5]
[1645306827590,0.0031997,2745.7,2745.1,1.54787453]
[1645306828247,1.82262,2745.7,2745.1,1.54787453]
[1645306828443,1.82262,2745.7,2745.2,1.54787453]
[1645306828645,1.82581959,2745.7,2745.3,1.54787453]
[1645306828842,1.77581959,2745.7,2745.4,1.54787453]
[1645306829044,1.77581959,2745.7,2744.8,3.5]
[1645306829045,2.68707959,2745.7,2744.8,3.5]
[1645306829344,0.91126,2745.6,2744.9,1.54790526]
[1645306829543,0.91126,2745.6,2745.0,3.5]
[1645306829742,0.91126,2745.6,2745.1,1.54790526]
[1645306830544,0.91126,2745.6,2745.2,1.54790526]
[1645306830748,0.91136,2745.4,2745.3,1.54790526]
[1645306830945,0.91136,2745.4,2744.9,1.54790526]
[1645306830946,1.82273,2745.4,2744.9,1.54790526]
[1645306832490,1.82273,2745.4,2745.0,1.54790526]
[1645306832687,1.82273,2745.4,2744.7,4.6259]
[1645306832688,1.82273,2745.4,2745.1,1.54790526]
[1645306832887,1.82273,2745.4,2745.2,1.54790526]
[1645306833088,1.82273,2745.4,2745.3,1.54790526]
[1645306833295,1.82273,2745.4,2744.8,1.54790526]
[1645306833495,0.91137,2745.4,2744.9,3.5]
[1645306833690,0.91137,2745.4,2745.0,1.54790526]
[1645306838644,0.91124,2745.6,2745.0,1.54790526]
[1645306838843,0.91124,2745.6,2744.9,1.54790526]
[1645306839043,0.91124,2745.6,2745.0,5.04790526]
[1645306839244,0.91124,2745.6,2745.1,1.54790526]
[1645306842289,0.91124,2745.6,2745.0,0.69315538]
[1645306842492,0.91124,2745.6,2745.1,3.5]
[1645306842693,0.91124,2745.6,2745.2,1.54790526]
[1645306843248,0.91124,2745.6,2745.3,1.54790526]
[1645306843449,0.91124,2745.6,2745.4,1.54790526]
[1645306843651,0.91124,2745.6,2745.5,1.54790526]
[1645306844046,0.91124,2745.6,2745.2,1.54790526]
[1645306844246,0.91124,2745.6,2745.3,1.54790526]
[1645306844447,0.91124,2745.6,2745.4,1.54790526]
[1645306844648,0.91124,2745.6,2745.5,1.54790526]
[1645306844849,0.91124,2745.6,2745.2,1.54790526]
[1645306845648,0.91124,2745.6,2745.3,1.54790526]
[1645306845850,0.91124,2745.6,2745.4,1.54790526]
[1645306846049,0.91124,2745.6,2745.5,1.54790526]
[1645306846254,0.91134,2745.5,2744.9,4.19315538]
[1645306846449,0.91134,2745.5,2745.0,1.5479783]
[1645306846893,0.91134,2745.5,2744.9,2.24113368]
[1645306847088,0.91134,2745.5,2745.1,0.69315538]
[1645306847289,0.91134,2745.5,2745.1,1.5479783]
[1645306847687,0.91134,2745.5,2745.2,1.5479783]
[1645306847888,0.91134,2745.5,2745.3,1.5479783]
[1645306848089,0.91134,2745.5,2745.4,1.5479783]
[1645306848689,0.91134,2745.5,2745.1,0.69315538]
[1645306849088,0.91134,2745.5,2745.1,2.24028463]
[1645306849290,0.91124,2745.6,2745.5,0.73973817]
[1645306849790,0.905685,2745.6,2745.5,2.28771647]
[1645306850637,1.816955,2745.6,2745.5,2.28771647]
[1645306853143,0.0032039,2745.7,2745.5,2.28771647]
[1645306853344,1.52869807,2745.8,2745.6,1.5479783]
[1645306853742,0.0032039,2745.7,2745.6,1.5479783]
[1645306854697,1.52869807,2745.8,2745.6,1.5479783]
[1645306854896,1.53190199,2745.8,2745.6,1.5479783]
[1645306855894,1.52869807,2745.8,2745.6,1.5479783]
[1645306856094,1.53190196,2745.8,2745.6,1.5479783]
[1645306856295,0.91131,2745.7,2745.6,1.5479783]
[1645306869898,0.90910434,2745.7,2745.6,1.5479783]
[1645306870498,3.35132807,2745.8,2745.6,5.0479783]
[1645306870499,0.91437392,2745.8,2745.6,5.0479783]
[1645306870700,0.91437392,2745.8,2745.7,1.5479783]
[1645306871199,0.91437392,2745.8,2745.6,1.5479783]
[1645306871397,0.91117,2745.8,2745.6,1.5479783]